bitfinex-derivatives/quotes_ETHF0:USTF0_20250427
["timestamp","ask_amount","ask_price","bid_price","bid_amount"]
[1745740533520,2.81827,1804.7,1804.6,3.523]
[1745740533717,2.81827,1804.7,1804.6,4.63103]
[1745740535025,1.7103,1804.7,1804.6,4.63103]
[1745740535927,1.7103,1804.7,1804.6,6.27793]
[1745740536727,1.7103,1804.7,1804.6,7.96443]
[1745740537423,1.7103,1804.7,1804.6,4.63103]
[1745740537621,2.81827,1804.7,1804.6,3.523]
[1745740539723,2.81827,1804.7,1804.3,1.676]
[1745740539724,1.10821,1804.4,1804.2,6.7288]
[1745740539928,1.10821,1804.4,1804.3,1.10821]
[1745740540831,1.91383,1804.5,1804.3,1.10821]
[1745740541022,0.8057,1804.5,1804.2,3.521]
[1745740541221,1.91383,1804.5,1804.3,1.10821]
[1745740541630,5.12163,1804.5,1804.3,1.10821]
[1745740542632,4.0135,1804.5,1804.3,1.10821]
[1745740542826,4.0135,1804.5,1804.3,2.76661]
[1745740543227,4.0135,1804.5,1804.3,6.48861]
[1745740543931,0.8057,1804.5,1804.3,6.48861]
[1745740544126,4.0135,1804.5,1804.3,2.76661]
[1745740544321,4.0135,1804.5,1804.4,1.10815]
[1745740544625,1.10802,1804.7,1804.5,1.10807]
[1745740544826,1.94322,1804.7,1804.5,1.10807]
[1745740545332,1.94322,1804.7,1804.5,2.78267]
[1745740547132,1.94322,1804.7,1804.5,6.50467]
[1745740547329,0.8352,1804.7,1804.6,1.10803]
[1745740547632,0.8352,1804.7,1804.6,2.69043]
[1745740549523,0.8352,1804.7,1804.6,4.36573]
[1745740549728,4.31571,1804.8,1804.6,4.36568]
[1745740549929,3.2078,1804.8,1804.6,4.36568]
[1745740550238,3.2078,1804.8,1804.7,1.10797]
[1745740550538,5.7223,1804.8,1804.7,1.10797]
[1745740551137,5.7223,1804.8,1804.7,4.82997]
[1745740551540,2.5145,1804.8,1804.7,4.82997]
[1745740551837,2.5145,1804.8,1804.7,3.722]
[1745740552332,2.5145,1804.8,1804.7,4.82997]
[1745740552533,2.5145,1804.8,1804.7,6.55607]
[1745740554235,2.5145,1804.8,1804.7,2.83407]
[1745740555333,2.5145,1804.8,1804.7,6.55607]
[1745740557241,2.5145,1804.8,1804.7,2.83407]
[1745740559145,2.5145,1804.8,1804.7,6.55607]
[1745740559742,3.62241,1804.8,1804.7,3.722]
[1745740560241,1.10801,1804.7,1804.5,4.62909]
[1745740560438,2.73631,1804.7,1804.5,4.62909]
[1745740560639,0.8076,1804.6,1804.5,4.62909]
[1745740560848,2.4359,1804.6,1804.5,4.62909]
[1745740561039,3.2916,1804.6,1804.5,4.62909]
[1745740562341,3.2916,1804.6,1804.5,5.1103]
[1745740562546,3.2916,1804.6,1804.5,6.21839]
[1745740563739,1.6283,1804.6,1804.5,6.21839]
[1745740566749,1.6283,1804.6,1804.5,9.42619]
[1745740567251,1.6283,1804.6,1804.5,13.14819]
[1745740568251,1.6283,1804.6,1804.5,9.42619]
[1745740569347,1.6283,1804.6,1804.5,13.14819]
[1745740573753,1.6283,1804.6,1804.5,9.94039]
[1745740574944,1.6018,1804.8,1804.7,1.10797]
[1745740575148,1.10803,1804.6,1804.5,3.521]
[1745740575356,1.10798,1804.7,1804.5,3.521]
[1745740575657,1.663,1804.6,1804.5,3.521]
[1745740575954,2.4605,1804.6,1804.5,3.521]
[1745740577055,2.4605,1804.6,1804.5,4.62909]
[1745740579862,3.3191,1804.6,1804.5,4.62909]
[1745740580048,3.3191,1804.6,1804.4,4.825]
[1745740580361,1.6908,1804.5,1804.4,6.7278]
[1745740580560,1.6908,1804.5,1804.4,7.83595]
[1745740581254,1.6908,1804.5,1804.4,11.55795]
[1745740581656,1.6561,1804.6,1804.5,1.10809]
[1745740581857,3.3469,1804.6,1804.5,1.10809]
[1745740582162,3.3469,1804.6,1804.5,4.83009]
[1745740583262,3.3469,1804.6,1804.5,1.10809]
[1745740589069,3.3469,1804.6,1804.2,0.43503714]
[1745740589070,3.3469,1804.6,1804.2,3.2078]
[1745740589360,5.97193,1804.6,1804.5,3.722]
[1745740590167,1.10816,1804.4,1804.2,7.83608]
[1745740590367,1.6006,1804.3,1804.2,7.83608]
[1745740591069,1.6006,1804.3,1803.9,10.51869734]
[1745740591261,1.1084,1804.0,1803.9,10.83189734]
[1745740591758,4.3162,1804.0,1803.9,10.83189734]
[1745740592069,9.3162,1804.0,1803.9,7.31089734]
[1745740592260,1.10846,1803.9,1803.8,6.83420054]
[1745740592464,12.14786,1803.9,1803.8,6.83420054]
[1745740592662,17.14786,1803.9,1803.8,6.83420054]
[1745740593269,20.86986,1803.9,1803.8,6.83420054]
[1745740597167,1.10868,1803.6,1803.3,1.10879]
[1745740597368,0.7895,1803.5,1803.3,1.10879]
[1745740598172,3.2078,1803.6,1803.5,1.10871]
[1745740598359,1.1086,1803.7,1803.5,1.10871]
[1745740598964,3.9973,1803.8,1803.4,2.4713]
[1745740599160,1.10873,1803.5,1803.2,6.7288]
[1745740599361,1.7288,1803.4,1803.2,7.83766]
[1745740600363,1.7288,1803.4,1803.3,1.10883]
[1745740600671,3.4353,1803.4,1803.3,1.10883]
[1745740602467,3.4353,1803.4,1803.2,9.45195]
[1745740602668,3.4353,1803.4,1803.3,1.6505]
[1745740603458,3.4353,1803.4,1803.3,2.75933]
[1745740604369,3.4353,1803.4,1803.3,1.6505]
[1745740607868,3.4353,1803.4,1803.3,2.75933]
[1745740608165,3.4353,1803.4,1803.2,8.66427]
[1745740608370,1.6394,1803.3,1803.2,10.32897]
[1745740609769,1.6394,1803.3,1803.2,7.12117]
[1745740609963,1.6394,1803.3,1803.2,10.32897]
[1745740612373,1.6394,1803.3,1803.2,7.12117]
[1745740617876,1.6394,1803.3,1803.2,6.0123]
[1745740618073,1.6394,1803.3,1803.2,7.12119]
[1745740623476,1.7288,1803.4,1803.3,1.10883]
[1745740623679,3.3824,1803.4,1803.3,2.74973]
[1745740623976,3.2078,1803.6,1803.5,1.10871]
[1745740624177,4.8614,1803.6,1803.5,1.10871]
[1745740624377,3.2078,1803.6,1803.5,1.10871]
[1745740624681,3.2078,1803.6,1803.5,5.49881]
[1745740624881,3.2078,1803.6,1803.5,6.031]
[1745740625077,4.31644,1803.6,1803.5,3.522]
[1745740625272,5.97004,1803.6,1803.5,3.522]
[1745740625982,2.76224,1803.6,1803.5,3.522]
[1745740627081,1.6536,1803.6,1803.5,4.63071]
[1745740630284,2.76224,1803.6,1803.5,3.522]
[1745740630783,2.76224,1803.6,1803.5,4.63071]
[1745740632280,2.76224,1803.6,1803.5,3.522]
[1745740632884,2.76224,1803.6,1803.5,4.63071]
[1745740633086,1.6536,1803.6,1803.5,4.63071]
[1745740635586,2.76224,1803.6,1803.5,4.63071]
[1745740637790,2.76224,1803.6,1803.5,3.522]
[1745740637988,2.76224,1803.6,1803.5,4.63071]
[1745740638288,2.76224,1803.6,1803.5,1.10871]
[1745740639088,1.10871,1803.5,1803.4,1.10873]
[1745740639293,2.5459,1803.5,1803.4,1.10873]
[1745740639483,3.65461,1803.5,1803.4,1.10873]
[1745740639988,2.5459,1803.5,1803.3,3.522]
[1745740640190,2.5429,1803.4,1803.3,4.63083]
[1745740641594,2.5429,1803.4,1803.3,6.36423]
[1745740642896,3.2078,1803.5,1803.4,1.10877]
[1745740643097,3.2078,1803.5,1803.4,2.84217]
[1745740643401,4.33828,1803.6,1803.4,2.84217]
[1745740643602,1.5955,1803.5,1803.4,2.84217]
[1745740650202,1.5955,1803.5,1803.4,4.46327]
[1745740659311,11.70806768,1803.7,1803.5,1.10871]
[1745740659518,13.40611768,1803.7,1803.6,1.10864]
[1745740659714,13.40611768,1803.7,1803.5,2.76686]
[1745740659914,1.6981,1803.6,1803.5,2.76686]
[1745740662616,3.2078,1803.7,1803.6,1.10864]
[1745740662820,13.30363768,1803.8,1803.7,1.10858]
[1745740663014,7.39163768,1803.8,1803.7,2.73628]
[1745740663214,7.39163768,1803.8,1803.7,6.45828]
[1745740663422,9.02733768,1803.8,1803.7,5.62238]
[1745740663622,10.13585768,1803.8,1803.7,3.722]
[1745740664216,10.13585768,1803.8,1803.6,2.68984]
[1745740664509,1.6357,1803.7,1803.6,2.68984]
[1745740673220,2.74428,1803.7,1803.5,6.25737]
[1745740673524,0.7961,1803.6,1803.5,7.95487]
[1745740673825,2.3642,1803.6,1803.5,7.95487]
[1745740674137,2.3642,1803.6,1803.5,4.62967]
[1745740674627,3.1889,1803.6,1803.5,4.62967]
[1745740674825,3.1889,1803.6,1803.5,6.35307]
[1745740675013,1.10856,1803.8,1803.6,1.1086]
[1745740675217,1.10856,1803.8,1803.6,4.4341]
[1745740675528,1.6232,1803.7,1803.6,4.4341]
[1745740680428,1.652,1803.9,1803.7,1.10852]
[1745740680627,1.10846,1803.9,1803.7,1.5918]
[1745740680822,3.62946,1803.9,1803.7,1.5918]
[1745740681527,1.6905,1803.8,1803.7,1.5918]
[1745740682031,1.6905,1803.8,1803.7,2.70034]
[1745740682625,0.8177,1803.9,1803.8,1.10852]
[1745740682935,2.5082,1803.9,1803.8,2.83332]
[1745740685532,2.5082,1803.9,1803.8,1.10852]
[1745740685927,3.9927,1804.0,1803.9,1.10846]
[1745740686127,0.7849,1804.0,1803.9,1.10846]
[1745740686326,3.4658,1804.0,1803.9,1.10846]
[1745740686527,3.4658,1804.0,1803.8,1.10847]
[1745740686729,1.5725,1803.9,1803.8,1.10847]
[1745740688037,1.5725,1803.9,1803.8,4.62847]
[1745740689131,5.1011,1804.0,1803.8,4.62847]
[1745740689337,3.9927,1804.0,1803.9,1.10846]
[1745740689531,3.9927,1804.0,1803.9,2.81336]
[1745740689731,5.6625,1804.0,1803.9,2.81336]
[1745740691227,5.6625,1804.0,1803.9,6.53536]
[1745740691424,7.39163768,1804.2,1804.1,1.10834]
[1745740691932,9.76753768,1804.2,1804.1,1.10834]
[1745740692132,2.3759,1804.2,1804.1,1.10834]
[1745740692328,3.1693,1804.2,1804.1,1.10834]
[1745740692637,4.27758,1804.2,1804.0,6.43235]
[1745740692935,1.5908,1804.1,1804.0,6.43235]
[1745740694137,1.5908,1804.1,1804.0,2.71035]
[1745740695430,1.5908,1804.1,1804.0,2.7104]
[1745740695634,1.5908,1804.1,1804.0,1.1084]
[1745740697241,1.5908,1804.1,1804.0,4.8304]
[1745740697740,1.5908,1804.1,1804.0,6.5652]
[1745740699239,1.5908,1804.1,1804.0,2.8432]
[1745740702034,1.5908,1804.1,1804.0,6.5652]
[1745740705247,1.5908,1804.1,1804.0,2.8432]
[1745740709150,1.5908,1804.1,1804.0,6.5652]
[1745740711148,1.5908,1804.1,1804.0,2.8432]
[1745740712254,1.5908,1804.1,1804.0,6.5652]
[1745740715058,1.5908,1804.1,1804.0,2.8432]
[1745740716060,1.5785,1804.2,1804.1,1.10834]
[1745740716359,9.1198,1804.5,1804.4,1.10815]
[1745740716559,9.1198,1804.5,1804.4,4.62815]
[1745740717165,9.1198,1804.5,1804.4,8.35015]
[1745740717458,9.09173768,1804.6,1804.5,1.10809]
[1745740717658,9.09173768,1804.6,1804.5,3.57219]
[1745740718064,9.09173768,1804.6,1804.5,7.29419]
[1745740720755,1.7001,1804.6,1804.5,7.29419]
[1745740722468,1.7001,1804.6,1804.5,3.722]
[1745740722666,2.5522,1804.6,1804.5,4.83009]
[1745740723268,2.5522,1804.6,1804.5,1.10809]
[1745740725365,1.7001,1804.6,1804.5,1.10809]
[1745740726169,1.7001,1804.6,1804.5,4.83009]
[1745740728471,1.7001,1804.6,1804.5,8.18939]
[1745740729574,3.2078,1804.9,1804.5,7.0813]
[1745740729775,3.3188,1804.8,1804.7,1.10793]
[1745740732369,3.3188,1804.8,1804.5,6.5671]
[1745740732673,1.6168,1804.7,1804.6,1.10803]
[1745740739468,1.6168,1804.7,1804.5,2.5672]
[1745740739469,1.6168,1804.7,1804.4,4.3506]
[1745740739667,1.6168,1804.7,1804.4,5.9711]
[1745740739869,1.6168,1804.7,1804.5,1.10809]
[1745740740177,1.6168,1804.7,1804.6,1.10803]
[1745740740578,1.6168,1804.7,1804.5,1.10805]
[1745740741778,1.6168,1804.7,1804.6,1.10803]
[1745740742078,5.3388,1804.7,1804.6,1.10803]
[1745740743179,1.6168,1804.7,1804.6,1.10803]
[1745740745279,2.72477,1804.7,1804.5,1.10806]
[1745740745883,2.79316,1804.6,1804.4,4.62814]
[1745740746179,2.4798,1804.5,1804.4,3.52]
[1745740746380,3.2845,1804.5,1804.4,4.62815]
[1745740747883,4.39259,1804.5,1804.4,3.52]
[1745740748578,4.39259,1804.5,1804.4,4.62815]
[1745740750086,4.39259,1804.5,1804.4,3.52]
[1745740754186,7.60039,1804.5,1804.4,3.52]
[1745740754590,11.4923,1804.5,1804.1,1.10828]
[1745740754776,2.78288,1804.4,1804.3,1.10821]
[1745740755892,1.6747,1804.4,1804.3,1.10821]
[1745740756693,1.6747,1804.4,1804.3,3.63801]
[1745740759596,2.78285,1804.4,1804.3,3.63801]
[1745740760799,2.78285,1804.4,1804.2,1.94194]
[1745740761098,2.73691,1804.3,1804.1,7.0788]
[1745740761401,2.73698,1804.2,1804.1,3.518]
[1745740761593,3.59188,1804.2,1804.1,3.518]
[1745740762497,4.39418,1804.2,1804.1,3.518]
[1745740762895,3.2859,1804.2,1804.1,4.62634]
[1745740763695,4.39418,1804.2,1804.1,4.62634]
[1745740765603,4.31606,1804.3,1804.1,4.62634]
[1745740765800,6.70986,1804.3,1804.1,6.26624]
[1745740766290,1.7312,1804.2,1804.1,6.26624]
[1745740766494,2.83948,1804.2,1804.1,6.26624]
[1745740767598,1.7312,1804.2,1804.1,6.26624]
[1745740768604,2.83948,1804.2,1804.1,6.26624]
[1745740769406,2.83948,1804.2,1804.1,3.518]
[1745740772603,1.10828,1804.2,1804.1,3.518]
[1745740772807,1.90816,1804.3,1804.1,6.19444]
[1745740773306,1.10828,1804.2,1804.1,6.19444]
[1745740773607,1.5658,1804.2,1804.1,6.19444]
[1745740776095,1.91998,1804.4,1804.2,1.10828]
[1745740776301,4.36958,1804.4,1804.2,4.34638]
[1745740777306,1.10821,1804.3,1804.2,4.34638]
[1745740777509,2.69401,1804.3,1804.2,4.34638]
[1745740782211,2.69401,1804.3,1804.2,8.06838]
[1745740784513,1.6756,1804.4,1804.3,1.10821]
[1745740784813,1.6756,1804.4,1804.3,2.69301]
[1745740785117,1.6756,1804.4,1804.3,6.41501]
[1745740785512,2.78375,1804.4,1804.3,6.41501]
[1745740785817,4.37615,1804.4,1804.3,6.41501]
[1745740786113,4.37615,1804.4,1804.3,2.69301]
[1745740786512,4.37615,1804.4,1804.3,1.5848]
[1745740788514,4.37615,1804.4,1804.3,2.69301]
[1745740789620,3.268,1804.4,1804.3,2.69301]
[1745740790021,3.2078,1804.5,1804.4,1.10815]
[1745740790208,4.31589,1804.5,1804.4,1.6924]
[1745740790408,5.97809,1804.5,1804.4,1.6924]
[1745740791412,5.97809,1804.5,1804.4,2.80055]
[1745740794311,6.78129,1804.5,1804.4,2.80055]
[1745740795315,3.57349,1804.5,1804.4,2.80055]
[1745740796416,3.57349,1804.5,1804.4,1.6924]
[1745740797117,3.57349,1804.5,1804.4,5.4144]
[1745740798111,3.57349,1804.5,1804.4,1.6924]
[1745740799418,3.57349,1804.5,1804.3,1.10819]
[1745740799617,1.7193,1804.4,1804.3,2.75399]
[1745740800319,2.82745,1804.4,1804.3,2.75399]
[1745740800818,1.7193,1804.4,1804.3,2.75399]
[1745740801024,2.82745,1804.4,1804.3,2.75399]
[1745740801617,1.7193,1804.4,1804.3,2.75399]
[1745740805021,2.82745,1804.4,1804.3,2.75399]
[1745740805221,3.66455,1804.4,1804.3,1.6458]
[1745740805520,1.10821,1804.3,1804.1,3.518]
[1745740805720,3.46551,1804.3,1804.2,1.10828]
[1745740806019,3.46551,1804.3,1804.1,4.62631]
[1745740806225,1.589,1804.2,1804.1,4.62631]
[1745740808415,1.589,1804.2,1804.1,6.34271]
[1745740809725,1.589,1804.2,1804.1,4.62631]
[1745740810119,1.589,1804.2,1804.1,6.20481]
[1745740813523,1.589,1804.2,1804.1,1.5785]
[1745740813730,2.69731,1804.2,1804.0,7.83418]
[1745740814028,1.6881,1804.1,1804.0,7.83418]
[1745740814244,3.4175,1804.1,1804.0,7.83418]
[1745740814440,3.4175,1804.1,1804.0,4.62638]
[1745740823049,4.52584,1804.1,1804.0,3.518]
[1745740824147,8.24784,1804.1,1804.0,3.518]
[1745740826153,4.52584,1804.1,1804.0,3.518]
[1745740828463,3.4175,1804.1,1804.0,4.6264]
[1745740839664,4.52584,1804.1,1804.0,3.518]
[1745740840751,3.4175,1804.1,1803.9,3.518]
[1745740840954,2.7514,1804.0,1803.9,3.518]
[1745740841158,6.4734,1804.0,1803.9,3.518]
[1745740841359,9.6812,1804.0,1803.9,3.518]
[1745740847470,1.10849,1803.9,1803.7,2.78174]
[1745740847771,1.10852,1803.8,1803.7,2.78174]
[1745740847974,1.10852,1803.8,1803.6,9.5423]
[1745740848167,1.6673,1803.7,1803.6,9.5423]
[1745740848369,1.6673,1803.7,1803.6,7.5733]
[1745740848370,3.59558,1803.7,1803.6,7.5733]
[1745740848558,3.59558,1803.7,1803.6,8.68194]
[1745740849268,7.31758,1803.7,1803.6,7.5733]
[1745740849469,7.31758,1803.7,1803.6,8.68194]
[1745740850065,2.487,1803.7,1803.6,8.68194]
[1745740850274,2.487,1803.7,1803.6,10.25514]
[1745740851068,2.487,1803.7,1803.6,7.04734]
[1745740852272,0.8042,1803.8,1803.7,1.10858]
[1745740852672,0.8042,1803.8,1803.7,3.59518]
[1745740855078,2.5043,1803.8,1803.7,3.59518]
[1745740860471,3.2078,1804.0,1803.9,1.10846]
[1745740860677,5.6839,1804.0,1803.9,1.10846]
[1745740861177,5.6839,1804.0,1803.9,6.46186]
[1745740861784,4.8462,1804.0,1803.9,6.46186]
[1745740862277,4.8462,1804.0,1803.9,2.73986]
[1745740863376,4.8462,1804.0,1803.9,1.10846]
[1745740863579,5.6839,1804.0,1803.9,1.10846]
[1745740865077,9.4059,1804.0,1803.9,1.10846]
[1745740866179,5.6839,1804.0,1803.9,1.10846]
[1745740867786,3.2078,1804.0,1803.9,1.10846]
[1745740868073,3.2078,1804.0,1803.9,7.23526]
[1745740869080,2.545,1804.1,1803.9,2.4048]
[1745740869280,2.545,1804.1,1804.0,2.7169]
[1745740869481,2.545,1804.1,1804.0,3.5597]
[1745740879979,2.545,1804.1,1804.0,2.7169]
[1745740881882,2.545,1804.1,1804.0,1.1084]
[1745740882085,6.267,1804.1,1804.0,1.1084]
[1745740882580,1.1085,1803.9,1803.5,10.58293853]
[1745740882777,1.6672,1803.8,1803.7,1.10857]
[1745740883078,7.0028,1803.8,1803.7,1.10857]
[1745740888992,7.0028,1803.8,1803.6,3.517]
[1745740889194,1.7221,1803.7,1803.6,4.62564]
[1745740890088,5.4441,1803.7,1803.6,4.62564]
[1745740897601,6.55268,1803.7,1803.6,3.517]
[1745740897803,6.55268,1803.7,1803.6,4.62564]
[1745740904416,6.55268,1803.7,1803.6,1.10864]
[1745740905412,6.55268,1803.7,1803.5,1.10866]
[1745740905613,2.4593,1803.6,1803.5,1.10866]
[1745740906213,6.1813,1803.6,1803.5,1.10866]
[1745740907112,10.49779,1803.6,1803.4,1.10877]
[1745740907312,2.3565,1803.5,1803.4,1.10877]
[1745740908212,6.0785,1803.5,1803.4,1.10877]
[1745740911814,3.722,1803.5,1803.4,1.10877]
[1745740912018,3.722,1803.5,1803.4,3.62897]
[1745740913316,1.5856,1803.6,1803.5,1.10871]
[1745740913512,1.5856,1803.6,1803.5,3.55861]
[1745740914116,5.3076,1803.6,1803.5,3.55861]
[1745740915216,3.722,1803.6,1803.5,3.55861]
[1745740916116,3.2078,1803.8,1803.7,1.10858]
[1745740916709,3.2078,1803.8,1803.7,2.81728]
[1745740918222,4.9025,1803.9,1803.8,1.10852]
[1745740918416,4.9025,1803.9,1803.8,2.81722]
[1745740919122,8.6245,1803.9,1803.8,2.81722]
[1745740920421,9.73298,1803.9,1803.7,1.10854]
[1745740920622,3.3048,1803.8,1803.7,1.10854]
[1745740921218,7.0268,1803.8,1803.7,1.10854]
[1745740928925,7.0268,1803.8,1803.7,2.67384]
[1745740930022,7.0268,1803.8,1803.7,1.10854]
[1745740930217,8.13532,1803.8,1803.7,1.10854]
[1745740930425,1.10862,1803.7,1803.6,1.10864]
[1745740930721,4.31638,1803.7,1803.6,1.10864]
[1745740930928,6.03848,1803.7,1803.6,1.10864]
[1745740931128,1.10867,1803.6,1803.5,1.10868]
[1745740931428,1.7221,1803.6,1803.5,1.10868]
[1745740932127,5.4441,1803.6,1803.5,1.10868]
[1745740934829,6.2823,1803.6,1803.5,1.10868]
[1745740935124,1.10871,1803.5,1803.3,3.518]
[1745740935424,5.7576,1803.5,1803.4,1.10877]
[1745740936125,9.4796,1803.5,1803.4,1.10877]
[1745740936428,6.2718,1803.5,1803.4,1.10877]
[1745740938325,7.38051,1803.5,1803.4,1.10877]
[1745740938729,6.2718,1803.5,1803.4,1.10877]
[1745740944132,7.38051,1803.5,1803.4,1.10877]
[1745740944338,10.58832,1803.5,1803.1,3.518]
[1745740944537,1.7309,1803.4,1803.3,1.10883]
[1745740945237,5.4529,1803.4,1803.3,1.10883]
[1745740949244,3.722,1803.4,1803.3,3.51843]
[1745740950155,9.03897749,1803.6,1803.5,1.10871]
[1745740950649,9.83267749,1803.6,1803.5,1.10871]
[1745740951149,13.55467749,1803.6,1803.5,1.10871]
[1745740953054,11.12567749,1803.6,1803.5,2.78661]
[1745740953258,7.40367749,1803.6,1803.5,2.78661]
[1745740953555,7.40367749,1803.6,1803.5,4.45051]
[1745740954564,1.701,1803.7,1803.6,1.10864]
[1745740954856,1.701,1803.7,1803.6,2.77254]
[1745740958251,5.423,1803.7,1803.6,2.77254]
[1745740961169,1.701,1803.7,1803.6,2.77254]
[1745740964165,5.423,1803.7,1803.6,2.77254]
[1745740970167,1.701,1803.7,1803.6,2.77254]
[1745740971172,5.423,1803.7,1803.6,2.77254]
[1745740972676,5.423,1803.7,1803.6,1.10864]
[1745740972862,6.2657,1803.7,1803.6,1.10864]
[1745740980885,6.2657,1803.7,1803.5,3.517]
[1745740981181,2.4258,1803.6,1803.5,4.62571]
[1745740982183,6.1478,1803.6,1803.5,4.62571]
[1745740986383,2.4258,1803.6,1803.5,4.62571]
[1745740987181,6.1478,1803.6,1803.5,4.62571]
[1745740987788,6.1478,1803.6,1803.5,1.10871]
[1745740988290,2.4258,1803.6,1803.5,1.10871]
[1745740989295,2.4258,1803.6,1803.5,2.79351]
[1745740993194,6.1478,1803.6,1803.5,2.79351]
[1745740994089,2.4258,1803.6,1803.5,2.79351]
[1745740996594,1.10871,1803.5,1803.2,3.517]
[1745740996792,3.65901,1803.5,1803.4,1.10877]
[1745740997086,6.2723,1803.5,1803.1,7.38253834]
[1745740997292,1.10888,1803.3,1803.1,8.49145834]
[1745740997496,3.3573,1803.2,1803.1,8.49145834]
[1745740998192,3.3573,1803.2,1803.1,1.10892]
[1745741004414,3.3573,1803.2,1803.0,3.516]
[1745741004711,2.76525,1803.1,1802.9,4.31683]
[1745741004914,1.6563,1803.0,1802.9,4.31683]
[1745741005215,2.443,1803.0,1802.9,1.10903]
[1745741005511,3.55205,1803.0,1802.9,1.10907]
[1745741005712,2.443,1803.0,1802.9,1.10907]
[1745741006812,3.55201,1803.0,1802.8,5.4859]
[1745741007016,1.6419,1802.9,1802.8,5.4859]
[1745741007214,2.4433,1802.9,1802.8,5.4859]
[1745741007411,2.4433,1802.9,1802.8,4.6261]
[1745741009306,2.4433,1802.9,1802.8,1.1091]
[1745741009507,3.5524,1802.9,1802.7,1.6742]
[1745741009703,1.6419,1802.8,1802.7,2.7834]
[1745741011215,5.3639,1802.8,1802.7,2.7834]
[1745741011511,6.47304,1802.8,1802.6,9.50662]
[1745741011818,2.4169,1802.7,1802.6,4.62622]
[1745741014117,6.1389,1802.7,1802.6,4.62622]
[1745741015207,2.4169,1802.7,1802.6,4.62622]
[1745741016214,1.6316,1802.7,1802.6,4.62622]
[1745741016417,4.0092,1802.9,1802.8,1.10914]
[1745741016617,3.2078,1802.9,1802.8,1.10914]
[1745741017118,3.2078,1802.9,1802.8,2.75754]
[1745741020018,4.9383,1802.9,1802.8,2.75754]
[1745741021018,1.7305,1802.9,1802.8,2.75754]
[1745741021220,4.9383,1802.9,1802.8,2.75754]
[1745741022214,1.10916,1802.8,1802.6,4.62723]
[1745741022421,3.3437,1802.8,1802.6,3.518]
[1745741022621,3.3437,1802.8,1802.7,1.1092]
[1745741024123,7.0657,1802.8,1802.7,1.1092]
[1745741025219,3.3437,1802.8,1802.7,1.1092]
[1745741026221,7.0657,1802.8,1802.7,1.1092]
[1745741027220,3.3437,1802.8,1802.7,1.1092]
[1745741031218,7.0657,1802.8,1802.7,1.1092]
[1745741032128,3.3437,1802.8,1802.7,1.1092]
[1745741033016,4.45284,1802.8,1802.6,3.518]
[1745741033222,1.7072,1802.7,1802.6,4.62722]
[1745741034618,2.8164,1802.7,1802.6,4.62722]
[1745741036530,1.7072,1802.7,1802.6,4.62722]
[1745741037322,1.7072,1802.7,1802.5,2.70888]
[1745741037525,0.8345,1802.6,1802.5,2.70888]
[1745741037922,2.55,1802.6,1802.5,1.10928]
[1745741045737,3.65928,1802.6,1802.4,2.4533]
[1745741045937,1.6226,1802.5,1802.4,3.56268]
[1745741049737,3.2078,1802.7,1802.6,1.10926]
[1745741049937,9.90057749,1802.9,1802.8,1.10914]
[1745741050141,11.00968749,1802.9,1802.7,3.69118]
[1745741050331,2.4485,1802.8,1802.7,1.1092]
[1745741050745,10.96131749,1802.8,1802.7,1.1092]
[1745741051040,10.96131749,1802.8,1802.6,4.62722]
[1745741051240,2.4969,1802.7,1802.6,4.62722]
[1745741053443,3.6061,1802.7,1802.5,1.10928]
[1745741053740,1.6971,1802.6,1802.5,1.10928]
[1745741055245,5.4191,1802.6,1802.5,1.10928]
[1745741055941,6.52839,1802.6,1802.4,4.62734]
[1745741056242,4.83129,1802.6,1802.5,1.10932]
[1745741056943,4.83126,1802.6,1802.5,1.10932]
[1745741057143,3.2078,1802.7,1802.4,3.518]
[1745741057342,1.10928,1802.6,1802.5,1.10931]
[1745741059146,4.83128,1802.6,1802.5,1.10931]
[1745741059741,1.10932,1802.5,1802.4,3.518]
[1745741060045,4.31712,1802.5,1802.3,3.58199]
[1745741060347,8.03912,1802.5,1802.3,1.10939]
[1745741060537,1.10943,1802.4,1802.2,3.517]
[1745741061444,1.10943,1802.4,1802.2,4.62647]
[1745741061846,1.10943,1802.4,1802.3,1.10944]
[1745741062947,1.10944,1802.3,1802.2,3.517]
[1745741063246,4.31724,1802.3,1802.2,4.62651]
[1745741065043,3.2078,1802.3,1802.2,4.62651]
[1745741065846,3.2078,1802.3,1802.2,5.44001]
[1745741066247,3.2078,1802.3,1802.2,9.16201]
[1745741067849,8.51304749,1802.5,1802.3,1.10941]
[1745741068053,3.2078,1802.4,1802.3,1.10941]
[1745741068951,3.2078,1802.4,1802.3,2.75161]
[1745741069154,4.31718,1802.4,1802.3,6.47361]
[1745741069747,4.31718,1802.4,1802.3,4.83144]
[1745741070251,3.2078,1802.4,1802.3,1.10944]
[1745741070549,3.2078,1802.4,1802.3,2.75164]
[1745741070752,4.8031,1802.4,1802.3,2.75164]
[1745741072151,5.91248,1802.4,1802.3,2.75164]
[1745741072450,4.8031,1802.4,1802.3,2.75164]
[1745741073851,4.8031,1802.4,1802.3,3.57674]
[1745741075049,3.2078,1802.4,1802.3,7.29874]
[1745741075348,16.56837749,1802.6,1802.5,1.10932]
[1745741075549,13.05037749,1802.6,1802.5,1.10932]
[1745741075750,13.91337749,1802.6,1802.5,1.10932]